[Event "December 19 Early 2023"]
[Site "https://www.chess.com"]
[Date "2023.12.19"]
[Round "11"]
[White "Bardyk, Artem"]
[Black "Deng, Henry"]
[Result "1/2-1/2"]
[Board "47"]
[TimeControl "180+1"]
[WhiteFideId "34349979"]
[BlackFideId "30965454"]
[WhiteElo "2300"]
[BlackElo "2586"]
[WhiteTeam "RUS"]
[BlackTeam "USA"]
[WhiteClock "0:00:06"]
[BlackClock "0:00:47"]

1. e4 {[%clk 0:03:00]}  c5 {[%clk 0:03:00]} 2. c3 {[%clk 0:03:00]}  Nf6 {[%clk 0:02:59]} 3. e5 {[%clk 0:03:00]}  Nd5 {[%clk 0:02:58]} 4. Nf3 {[%clk 0:03:00]}  d6 {[%clk 0:02:58]} 5. Bc4 {[%clk 0:03:01]}  e6 {[%clk 0:02:58]} 6. d4 {[%clk 0:03:01]}  cxd4 {[%clk 0:02:58]} 7. cxd4 {[%clk 0:03:02]}  Be7 {[%clk 0:02:58]} 8. O-O {[%clk 0:03:02]}  O-O {[%clk 0:02:59]} 9. Bd2 {[%clk 0:03:03]}  b6 {[%clk 0:02:57]} 10. Nc3 {[%clk 0:03:03]}  Nxc3 {[%clk 0:02:57]} 11. Bxc3 {[%clk 0:03:04]}  Bb7 {[%clk 0:02:57]} 12. Qe2 {[%clk 0:03:04]}  Nd7 {[%clk 0:02:56]} 13. Rad1 {[%clk 0:03:04]}  dxe5 {[%clk 0:02:45]} 14. d5 {[%clk 0:02:52]}  exd5 {[%clk 0:02:42]} 15. Bxd5 {[%clk 0:02:53]}  Bxd5 {[%clk 0:02:43]} 16. Rxd5 {[%clk 0:02:53]}  Qc7 {[%clk 0:02:43]} 17. Rfd1 {[%clk 0:02:52]}  Nf6 {[%clk 0:02:40]} 18. Bxe5 {[%clk 0:02:48]}  Qc6 {[%clk 0:02:40]} 19. R5d3 {[%clk 0:02:42]}  Rfe8 {[%clk 0:02:37]} 20. Nd4 {[%clk 0:02:36]}  Qc5 {[%clk 0:02:31]} 21. Bg3 {[%clk 0:02:15]}  Bf8 {[%clk 0:02:22]} 22. Qf3 {[%clk 0:02:13]}  Rad8 {[%clk 0:02:20]} 23. h3 {[%clk 0:02:11]}  Qd5 {[%clk 0:02:15]} 24. Qxd5 {[%clk 0:02:08]}  Rxd5 {[%clk 0:02:15]} 25. Nc6 {[%clk 0:02:07]}  Rxd3 {[%clk 0:02:00]} 26. Rxd3 {[%clk 0:02:07]}  a5 {[%clk 0:02:00]} 27. a4 {[%clk 0:02:07]}  h6 {[%clk 0:01:59]} 28. Be5 {[%clk 0:01:44]}  Ne4 {[%clk 0:01:49]} 29. Bd4 {[%clk 0:01:32]}  Bc5 {[%clk 0:01:45]} 30. Re3 {[%clk 0:01:31]}  Bxd4 {[%clk 0:01:45]} 31. Nxd4 {[%clk 0:01:32]}  Nd6 {[%clk 0:01:46]} 32. Rb3 {[%clk 0:01:27]}  Re4 {[%clk 0:01:41]} 33. Nc6 {[%clk 0:01:22]}  Rxa4 {[%clk 0:01:39]} 34. Rxb6 {[%clk 0:01:22]}  Nc4 {[%clk 0:01:39]} 35. Rb8+ {[%clk 0:01:20]}  Kh7 {[%clk 0:01:39]} 36. b3 {[%clk 0:01:15]}  Ra1+ {[%clk 0:01:38]} 37. Kh2 {[%clk 0:01:16]}  Nd2 {[%clk 0:01:39]} 38. g3 {[%clk 0:01:14]}  a4 {[%clk 0:01:37]} 39. bxa4 {[%clk 0:01:12]}  Rxa4 {[%clk 0:01:37]} 40. Rb7 {[%clk 0:01:13]}  Kg8 {[%clk 0:01:36]} 41. Ne7+ {[%clk 0:01:11]}  Kf8 {[%clk 0:01:34]} 42. Nf5 {[%clk 0:01:11]}  Kg8 {[%clk 0:01:29]} 43. Nd6 {[%clk 0:01:12]}  Ra8 {[%clk 0:01:22]} 44. Rxf7 {[%clk 0:01:03]}  Rd8 {[%clk 0:01:16]} 45. Nb7 {[%clk 0:01:03]}  Kxf7 {[%clk 0:01:13]} 46. Nxd8+ {[%clk 0:01:03]}  Kf6 {[%clk 0:01:13]} 47. Kg2 {[%clk 0:01:03]}  Ne4 {[%clk 0:01:13]} 48. Nc6 {[%clk 0:01:02]}  Nc5 {[%clk 0:01:11]} 49. Nd4 {[%clk 0:01:03]}  Ne4 {[%clk 0:01:10]} 50. Kf3 {[%clk 0:01:01]}  Nc5 {[%clk 0:01:11]} 51. Ke3 {[%clk 0:01:00]}  Nd7 {[%clk 0:01:11]} 52. Nf3 {[%clk 0:00:59]}  Nf8 {[%clk 0:01:11]} 53. Ke4 {[%clk 0:00:59]}  Ne6 {[%clk 0:01:11]} 54. Ne1 {[%clk 0:00:58]}  Ng5+ {[%clk 0:01:11]} 55. Ke3 {[%clk 0:00:56]}  Nxh3 {[%clk 0:01:10]} 56. Nd3 {[%clk 0:00:42]}  Ng5 {[%clk 0:01:03]} 57. Nf4 {[%clk 0:00:42]}  Nf7 {[%clk 0:01:02]} 58. Nh5+ {[%clk 0:00:42]}  Kg6 {[%clk 0:01:01]} 59. Nf4+ {[%clk 0:00:43]}  Kf6 {[%clk 0:01:01]} 60. Ke4 {[%clk 0:00:43]}  Ng5+ {[%clk 0:01:00]} 61. Ke3 {[%clk 0:00:41]}  g6 {[%clk 0:01:01]} 62. Nd5+ {[%clk 0:00:40]}  Ke6 {[%clk 0:01:01]} 63. Nc3 {[%clk 0:00:39]}  Nf7 {[%clk 0:00:59]} 64. Ne2 {[%clk 0:00:40]}  Ne5 {[%clk 0:00:59]} 65. Kf4 {[%clk 0:00:37]}  Kf6 {[%clk 0:00:59]} 66. Nc3 {[%clk 0:00:36]}  g5+ {[%clk 0:00:59]} 67. Ke4 {[%clk 0:00:36]}  Nc6 {[%clk 0:00:55]} 68. Nd5+ {[%clk 0:00:37]}  Kg6 {[%clk 0:00:55]} 69. Ne3 {[%clk 0:00:34]}  Ne7 {[%clk 0:00:55]} 70. Ke5 {[%clk 0:00:32]}  Ng8 {[%clk 0:00:55]} 71. Ke6 {[%clk 0:00:31]}  Nf6 {[%clk 0:00:55]} 72. f4 {[%clk 0:00:31]}  gxf4 {[%clk 0:00:54]} 73. gxf4 {[%clk 0:00:32]}  Nh5 {[%clk 0:00:47]} 74. f5+ {[%clk 0:00:32]}  Kg7 {[%clk 0:00:48]} 75. Nd5 {[%clk 0:00:29]}  Kf8 {[%clk 0:00:44]} 76. Nb6 {[%clk 0:00:07]}  Ng7+ {[%clk 0:00:44]} 77. Kf6 {[%clk 0:00:06]}  h5 {[%clk 0:00:45]} 78. Nd7+ {[%clk 0:00:06]}  Kg8 {[%clk 0:00:45]} 79. Kg6 {[%clk 0:00:05]}  Nxf5 {[%clk 0:00:45]} 80. Nf6+ {[%clk 0:00:04]}  Kh8 {[%clk 0:00:44]} 81. Kxf5 {[%clk 0:00:03]}  h4 {[%clk 0:00:45]} 82. Kg4 {[%clk 0:00:04]}  h3 {[%clk 0:00:46]} 83. Kg3 {[%clk 0:00:04]}  h2 {[%clk 0:00:47]} 84. Kg2 {[%clk 0:00:05]}  h1=Q+ {[%clk 0:00:47]} 85. Kxh1 {[%clk 0:00:06]} 1/2-1/2

[Event "December 19 Early 2023"]
[Site "https://www.chess.com"]
[Date "2023.12.19"]
[Round "11"]
[White "Andreev, Konstantin"]
[Black "Feuerstack, Aljoscha"]
[Result "0-1"]
[Board "48"]
[TimeControl "180+1"]
[WhiteFideId "24239305"]
[BlackFideId "4681932"]
[WhiteElo "2093"]
[BlackElo "2418"]
[WhiteTeam "ITA"]
[BlackTeam "GER"]
[WhiteClock "0:00:05"]
[BlackClock "0:00:15"]

1. e4 {[%clk 0:03:00]}  c6 {[%clk 0:02:59]} 2. d4 {[%clk 0:02:58]}  d5 {[%clk 0:02:59]} 3. e5 {[%clk 0:02:59]}  a6 {[%clk 0:02:59]} 4. Nf3 {[%clk 0:02:59]}  Bg4 {[%clk 0:02:59]} 5. Be2 {[%clk 0:02:59]}  e6 {[%clk 0:02:59]} 6. O-O {[%clk 0:02:58]}  c5 {[%clk 0:02:55]} 7. c3 {[%clk 0:02:55]}  Nc6 {[%clk 0:02:47]} 8. h3 {[%clk 0:02:49]}  Bxf3 {[%clk 0:02:46]} 9. Bxf3 {[%clk 0:02:50]}  cxd4 {[%clk 0:02:31]} 10. cxd4 {[%clk 0:02:51]}  Qb6 {[%clk 0:02:31]} 11. Be3 {[%clk 0:02:47]}  Nh6 {[%clk 0:02:27]} 12. Bxh6 {[%clk 0:02:37]}  gxh6 {[%clk 0:02:28]} 13. Nc3 {[%clk 0:02:38]}  Qxd4 {[%clk 0:02:25]} 14. Qb3 {[%clk 0:02:35]}  Qb4 {[%clk 0:02:21]} 15. Qc2 {[%clk 0:02:16]}  Bg7 {[%clk 0:02:17]} 16. Bxd5 {[%clk 0:02:12]}  exd5 {[%clk 0:02:11]} 17. Nxd5 {[%clk 0:02:13]}  Qa5 {[%clk 0:02:11]} 18. Nf6+ {[%clk 0:02:12]}  Kf8 {[%clk 0:02:10]} 19. Nxh7+ {[%clk 0:02:00]}  Kg8 {[%clk 0:01:50]} 20. Nf6+ {[%clk 0:01:59]}  Bxf6 {[%clk 0:01:49]} 21. exf6 {[%clk 0:02:00]}  Re8 {[%clk 0:01:49]} 22. Qc4 {[%clk 0:01:43]}  Qg5 {[%clk 0:01:45]} 23. Rae1 {[%clk 0:01:27]}  Rxe1 {[%clk 0:01:35]} 24. Rxe1 {[%clk 0:01:28]}  Qxf6 {[%clk 0:01:36]} 25. Re8+ {[%clk 0:01:20]}  Kg7 {[%clk 0:01:34]} 26. Re3 {[%clk 0:01:04]}  Rd8 {[%clk 0:01:27]} 27. Qg4+ {[%clk 0:01:01]}  Qg6 {[%clk 0:01:16]} 28. Qf4 {[%clk 0:01:01]}  Nd4 {[%clk 0:00:58]} 29. Qe5+ {[%clk 0:00:52]}  Kh7 {[%clk 0:00:31]} 30. Rg3 {[%clk 0:00:46]}  Qb1+ {[%clk 0:00:24]} 31. Kh2 {[%clk 0:00:44]}  Ne6 {[%clk 0:00:13]} 32. Qf6 {[%clk 0:00:33]}  Rf8 {[%clk 0:00:14]} 33. f4 {[%clk 0:00:33]}  Qe4 {[%clk 0:00:14]} 34. f5 {[%clk 0:00:33]}  Qf4 {[%clk 0:00:14]} 35. h4 {[%clk 0:00:22]}  Rg8 {[%clk 0:00:14]} 36. Qxf7+ {[%clk 0:00:05]}  Rg7 {[%clk 0:00:15]} 0-1

[Event "December 19 Early 2023"]
[Site "https://www.chess.com"]
[Date "2023.12.19"]
[Round "11"]
[White "Estrada Nieto, Julian"]
[Black "Rozman, Levy"]
[Result "0-1"]
[Board "49"]
[TimeControl "180+1"]
[WhiteFideId "5101018"]
[BlackFideId "2039877"]
[WhiteElo "2161"]
[BlackElo "2376"]
[WhiteTeam "ESP"]
[BlackTeam "USA"]
[WhiteClock "0:00:54"]
[BlackClock "0:00:49"]

1. e4 {[%clk 0:03:00]}  d5 {[%clk 0:02:58]} 2. exd5 {[%clk 0:03:00]}  Qxd5 {[%clk 0:02:59]} 3. Nc3 {[%clk 0:03:00]}  Qa5 {[%clk 0:03:00]} 4. d4 {[%clk 0:03:00]}  Nf6 {[%clk 0:03:00]} 5. Nf3 {[%clk 0:03:01]}  Bf5 {[%clk 0:03:01]} 6. Bc4 {[%clk 0:03:01]}  e6 {[%clk 0:03:02]} 7. Bd2 {[%clk 0:03:01]}  Bb4 {[%clk 0:03:02]} 8. Qe2 {[%clk 0:02:58]}  O-O {[%clk 0:02:56]} 9. O-O-O {[%clk 0:02:55]}  Nc6 {[%clk 0:02:42]} 10. Kb1 {[%clk 0:02:46]}  Rfd8 {[%clk 0:02:23]} 11. a3 {[%clk 0:02:43]}  Bxc3 {[%clk 0:02:00]} 12. Bxc3 {[%clk 0:02:43]}  Qb6 {[%clk 0:02:01]} 13. Nh4 {[%clk 0:02:02]}  Nxd4 {[%clk 0:01:45]} 14. Bxd4 {[%clk 0:02:01]}  Rxd4 {[%clk 0:01:45]} 15. Nxf5 {[%clk 0:02:00]}  exf5 {[%clk 0:01:39]} 16. Qe7 {[%clk 0:01:45]}  Rf8 {[%clk 0:01:06]} 17. Rxd4 {[%clk 0:01:18]}  Qxd4 {[%clk 0:01:07]} 18. Rd1 {[%clk 0:00:54]}  Qxd1+ {[%clk 0:00:49]} 0-1

[Event "December 19 Early 2023"]
[Site "https://www.chess.com"]
[Date "2023.12.19"]
[Round "11"]
[White "Hnydiuk, Aleksander"]
[Black "Piesik, Piotr"]
[Result "1-0"]
[Board "51"]
[TimeControl "180+1"]
[WhiteFideId "1109057"]
[BlackFideId "1136194"]
[WhiteElo "2374"]
[BlackElo "2319"]
[WhiteTeam "POL"]
[BlackTeam "CZE"]
[WhiteClock "0:00:08"]
[BlackClock "0:00:32"]

1. e4 {[%clk 0:03:00]}  e6 {[%clk 0:02:59]} 2. d4 {[%clk 0:03:00]}  d5 {[%clk 0:02:59]} 3. Nc3 {[%clk 0:03:00]}  Bb4 {[%clk 0:02:59]} 4. e5 {[%clk 0:02:59]}  b6 {[%clk 0:02:58]} 5. Qg4 {[%clk 0:02:56]}  Bf8 {[%clk 0:02:58]} 6. Bb5+ {[%clk 0:02:33]}  c6 {[%clk 0:02:56]} 7. Ba4 {[%clk 0:02:33]}  a5 {[%clk 0:02:54]} 8. Bb3 {[%clk 0:02:32]}  b5 {[%clk 0:02:43]} 9. a4 {[%clk 0:02:28]}  b4 {[%clk 0:02:43]} 10. Nce2 {[%clk 0:02:26]}  Ne7 {[%clk 0:02:40]} 11. c3 {[%clk 0:02:19]}  Ba6 {[%clk 0:02:36]} 12. cxb4 {[%clk 0:02:13]}  axb4 {[%clk 0:02:37]} 13. Bd2 {[%clk 0:02:13]}  Nf5 {[%clk 0:02:33]} 14. Bc2 {[%clk 0:02:13]}  h5 {[%clk 0:02:32]} 15. Qh3 {[%clk 0:02:06]}  Qd7 {[%clk 0:02:23]} 16. g4 {[%clk 0:01:38]}  Ne7 {[%clk 0:02:22]} 17. gxh5 {[%clk 0:01:38]}  Nf5 {[%clk 0:02:21]} 18. Qg4 {[%clk 0:01:17]}  c5 {[%clk 0:02:18]} 19. dxc5 {[%clk 0:01:13]}  Nc6 {[%clk 0:02:18]} 20. Nf3 {[%clk 0:01:04]}  Bxe2 {[%clk 0:02:13]} 21. Kxe2 {[%clk 0:01:03]}  Qc7 {[%clk 0:02:00]} 22. Bxf5 {[%clk 0:00:59]}  exf5 {[%clk 0:01:56]} 23. Qxf5 {[%clk 0:01:00]}  Bxc5 {[%clk 0:01:55]} 24. Rhc1 {[%clk 0:00:55]}  Ne7 {[%clk 0:01:49]} 25. Qg5 {[%clk 0:00:51]}  Qb6 {[%clk 0:01:43]} 26. Qxg7 {[%clk 0:00:33]}  Rxh5 {[%clk 0:01:43]} 27. Ng5 {[%clk 0:00:27]}  Rxh2 {[%clk 0:01:11]} 28. Qxf7+ {[%clk 0:00:23]}  Kd7 {[%clk 0:01:09]} 29. e6+ {[%clk 0:00:20]}  Kc6 {[%clk 0:01:08]} 30. Be3 {[%clk 0:00:15]}  d4 {[%clk 0:01:00]} 31. Qxe7 {[%clk 0:00:11]}  Qa6+ {[%clk 0:00:32]} 32. Kf3 {[%clk 0:00:08]} 1-0

[Event "December 19 Early 2023"]
[Site "https://www.chess.com"]
[Date "2023.12.19"]
[Round "11"]
[White "Skliarov, Viktor"]
[Black "Namitbir Singh Walia"]
[Result "1/2-1/2"]
[Board "54"]
[TimeControl "180+1"]
[WhiteFideId "14106736"]
[BlackFideId "35071068"]
[WhiteElo "2301"]
[BlackElo "2239"]
[WhiteTeam "UKR"]
[BlackTeam "IND"]
[WhiteClock "0:00:09"]
[BlackClock "0:00:09"]

1. e4 {[%clk 0:03:00]}  c6 {[%clk 0:03:00]} 2. d4 {[%clk 0:02:58]}  d5 {[%clk 0:03:01]} 3. e5 {[%clk 0:02:58]}  Bf5 {[%clk 0:03:01]} 4. Nf3 {[%clk 0:02:58]}  e6 {[%clk 0:03:01]} 5. Be2 {[%clk 0:02:58]}  Nd7 {[%clk 0:03:00]} 6. O-O {[%clk 0:02:58]}  Ne7 {[%clk 0:03:01]} 7. a4 {[%clk 0:02:58]}  Nc8 {[%clk 0:03:00]} 8. Na3 {[%clk 0:02:54]}  Be7 {[%clk 0:02:58]} 9. c3 {[%clk 0:02:49]}  O-O {[%clk 0:02:58]} 10. Nc2 {[%clk 0:02:44]}  c5 {[%clk 0:02:58]} 11. Ne3 {[%clk 0:02:40]}  Bg6 {[%clk 0:02:57]} 12. c4 {[%clk 0:02:14]}  cxd4 {[%clk 0:02:56]} 13. Qxd4 {[%clk 0:02:11]}  Bc5 {[%clk 0:02:52]} 14. Qf4 {[%clk 0:01:55]}  d4 {[%clk 0:02:23]} 15. Nxd4 {[%clk 0:01:04]}  Nxe5 {[%clk 0:02:11]} 16. Nb3 {[%clk 0:00:43]}  Bd6 {[%clk 0:02:08]} 17. c5 {[%clk 0:00:43]}  Bc7 {[%clk 0:02:04]} 18. Nc4 {[%clk 0:00:22]}  Nxc4 {[%clk 0:01:53]} 19. Qxc4 {[%clk 0:00:21]}  Ne7 {[%clk 0:01:53]} 20. Rd1 {[%clk 0:00:18]}  Nd5 {[%clk 0:01:50]} 21. Bf3 {[%clk 0:00:18]}  Qb8 {[%clk 0:01:49]} 22. h3 {[%clk 0:00:16]}  Bf5 {[%clk 0:01:22]} 23. Nd4 {[%clk 0:00:16]}  Bg6 {[%clk 0:01:14]} 24. b4 {[%clk 0:00:16]}  Be5 {[%clk 0:01:08]} 25. Bb2 {[%clk 0:00:16]}  Nf4 {[%clk 0:01:03]} 26. Ra3 {[%clk 0:00:15]}  Rd8 {[%clk 0:01:02]} 27. Re1 {[%clk 0:00:14]}  Qc7 {[%clk 0:00:47]} 28. Ba1 {[%clk 0:00:15]}  Nd3 {[%clk 0:00:32]} 29. Rxd3 {[%clk 0:00:12]}  Bxd3 {[%clk 0:00:33]} 30. Qxd3 {[%clk 0:00:13]}  Bxd4 {[%clk 0:00:30]} 31. Bxd4 {[%clk 0:00:13]}  Qd7 {[%clk 0:00:25]} 32. Rd1 {[%clk 0:00:09]}  e5 {[%clk 0:00:24]} 33. Qe4 {[%clk 0:00:06]}  exd4 {[%clk 0:00:23]} 34. Qxb7 {[%clk 0:00:07]}  Qxa4 {[%clk 0:00:20]} 35. Kh2 {[%clk 0:00:04]}  Rab8 {[%clk 0:00:19]} 36. Qe7 {[%clk 0:00:05]}  Qxb4 {[%clk 0:00:19]} 37. Qxa7 {[%clk 0:00:04]}  Rbc8 {[%clk 0:00:16]} 38. c6 {[%clk 0:00:04]}  Qd6+ {[%clk 0:00:17]} 39. g3 {[%clk 0:00:04]}  d3 {[%clk 0:00:17]} 40. Kg2 {[%clk 0:00:04]}  d2 {[%clk 0:00:18]} 41. Qa5 {[%clk 0:00:03]}  h6 {[%clk 0:00:15]} 42. h4 {[%clk 0:00:04]}  Rxc6 {[%clk 0:00:15]} 43. Bxc6 {[%clk 0:00:03]}  Qxc6+ {[%clk 0:00:16]} 44. Kg1 {[%clk 0:00:04]}  Qd6 {[%clk 0:00:17]} 45. Qc3 {[%clk 0:00:03]}  Qd5 {[%clk 0:00:15]} 46. Qe3 {[%clk 0:00:02]}  Qa2 {[%clk 0:00:15]} 47. Qe2 {[%clk 0:00:02]}  Qc2 {[%clk 0:00:15]} 48. h5 {[%clk 0:00:02]}  Qc1 {[%clk 0:00:12]} 49. g4 {[%clk 0:00:03]}  Qc3 {[%clk 0:00:11]} 50. f3 {[%clk 0:00:03]}  Qd4+ {[%clk 0:00:09]} 51. Kf1 {[%clk 0:00:03]}  Qf4 {[%clk 0:00:09]} 52. Kg2 {[%clk 0:00:03]}  Qd6 {[%clk 0:00:07]} 53. Kf2 {[%clk 0:00:03]}  Qd4+ {[%clk 0:00:08]} 54. Qe3 {[%clk 0:00:03]}  Qb2 {[%clk 0:00:07]} 55. Ke2 {[%clk 0:00:04]}  Qb5+ {[%clk 0:00:07]} 56. Kf2 {[%clk 0:00:03]}  Qb4 {[%clk 0:00:05]} 57. Ke2 {[%clk 0:00:03]}  Qc4+ {[%clk 0:00:04]} 58. Kf2 {[%clk 0:00:03]}  Rd3 {[%clk 0:00:04]} 59. Qe2 {[%clk 0:00:03]}  Qd4+ {[%clk 0:00:04]} 60. Kg2 {[%clk 0:00:03]}  Qd5 {[%clk 0:00:04]} 61. Kf2 {[%clk 0:00:03]}  g6 {[%clk 0:00:03]} 62. hxg6 {[%clk 0:00:03]}  fxg6 {[%clk 0:00:04]} 63. Qe8+ {[%clk 0:00:04]}  Kg7 {[%clk 0:00:04]} 64. Qe7+ {[%clk 0:00:04]}  Kg8 {[%clk 0:00:04]} 65. Qe8+ {[%clk 0:00:05]}  Kg7 {[%clk 0:00:04]} 66. Qe7+ {[%clk 0:00:05]}  Qf7 {[%clk 0:00:04]} 67. Qxf7+ {[%clk 0:00:06]}  Kxf7 {[%clk 0:00:05]} 68. Ke2 {[%clk 0:00:06]}  Rd5 {[%clk 0:00:06]} 69. Rxd2 {[%clk 0:00:07]}  Rxd2+ {[%clk 0:00:06]} 70. Kxd2 {[%clk 0:00:07]}  Kf6 {[%clk 0:00:07]} 71. Ke3 {[%clk 0:00:07]}  Kg5 {[%clk 0:00:08]} 72. Kf2 {[%clk 0:00:07]}  Kf4 {[%clk 0:00:08]} 73. Kg2 {[%clk 0:00:08]}  Ke3 {[%clk 0:00:08]} 74. Kg3 {[%clk 0:00:08]}  g5 {[%clk 0:00:08]} 75. Kg2 {[%clk 0:00:07]}  Ke2 {[%clk 0:00:08]} 76. Kg3 {[%clk 0:00:08]}  Ke3 {[%clk 0:00:09]} 77. Kg2 {[%clk 0:00:08]}  Ke2 {[%clk 0:00:09]} 78. Kg3 {[%clk 0:00:09]}  Ke3 {[%clk 0:00:09]} 1/2-1/2

[Event "December 19 Early 2023"]
[Site "https://www.chess.com"]
[Date "2023.12.19"]
[Round "11"]
[White "Nilsson, Joakim"]
[Black "Golubev, Mikhail"]
[Result "1-0"]
[Board "56"]
[TimeControl "180+1"]
[WhiteFideId "1723383"]
[BlackFideId "14100983"]
[WhiteElo "2143"]
[BlackElo "2352"]
[WhiteTeam "SWE"]
[BlackTeam "UKR"]
[WhiteClock "0:00:23"]
[BlackClock "0:00:00"]

1. d4 {[%clk 0:03:00]}  Nf6 {[%clk 0:02:59]} 2. Nf3 {[%clk 0:03:01]}  d6 {[%clk 0:03:00]} 3. Bg5 {[%clk 0:02:59]}  Nbd7 {[%clk 0:02:59]} 4. Nbd2 {[%clk 0:02:59]}  e5 {[%clk 0:02:58]} 5. e4 {[%clk 0:02:58]}  Be7 {[%clk 0:02:57]} 6. dxe5 {[%clk 0:02:54]}  dxe5 {[%clk 0:02:55]} 7. c3 {[%clk 0:02:48]}  h6 {[%clk 0:02:54]} 8. Bh4 {[%clk 0:02:43]}  O-O {[%clk 0:02:52]} 9. Bc4 {[%clk 0:02:38]}  Nh5 {[%clk 0:02:42]} 10. Bg3 {[%clk 0:02:32]}  Nf4 {[%clk 0:02:22]} 11. Bxf4 {[%clk 0:02:11]}  exf4 {[%clk 0:02:23]} 12. Qe2 {[%clk 0:02:10]}  Bf6 {[%clk 0:02:19]} 13. O-O-O {[%clk 0:02:08]}  Qe7 {[%clk 0:02:19]} 14. g3 {[%clk 0:01:56]}  fxg3 {[%clk 0:02:06]} 15. hxg3 {[%clk 0:01:57]}  c6 {[%clk 0:01:54]} 16. Rde1 {[%clk 0:01:45]}  b5 {[%clk 0:01:44]} 17. Bb3 {[%clk 0:01:42]}  b4 {[%clk 0:00:47]} 18. cxb4 {[%clk 0:01:28]}  Qxb4 {[%clk 0:00:44]} 19. e5 {[%clk 0:01:17]}  Re8 {[%clk 0:00:43]} 20. e6 {[%clk 0:00:20]}  fxe6 {[%clk 0:00:32]} 21. Ne4 {[%clk 0:00:20]}  a5 {[%clk 0:00:12]} 22. g4 {[%clk 0:00:20]}  a4 {[%clk 0:00:11]} 23. Bc4 {[%clk 0:00:20]}  a3 {[%clk 0:00:11]} 24. b3 {[%clk 0:00:20]}  Ra5 {[%clk 0:00:09]} 25. g5 {[%clk 0:00:19]}  Bxg5+ {[%clk 0:00:07]} 26. Nfxg5 {[%clk 0:00:19]}  Rxg5 {[%clk 0:00:05]} 27. Nxg5 {[%clk 0:00:18]}  Qc3+ {[%clk 0:00:05]} 28. Qc2 {[%clk 0:00:19]}  Qa1+ {[%clk 0:00:05]} 29. Kd2 {[%clk 0:00:19]}  Qd4+ {[%clk 0:00:05]} 30. Qd3 {[%clk 0:00:20]}  Qb2+ {[%clk 0:00:04]} 31. Qc2 {[%clk 0:00:19]}  Qxc2+ {[%clk 0:00:03]} 32. Kxc2 {[%clk 0:00:20]}  hxg5 {[%clk 0:00:03]} 33. Rxe6 {[%clk 0:00:19]}  Rxe6 {[%clk 0:00:02]} 34. Bxe6+ {[%clk 0:00:20]}  Kf8 {[%clk 0:00:02]} 35. Rd1 {[%clk 0:00:20]}  Ke7 {[%clk 0:00:02]} 36. Bg4 {[%clk 0:00:21]}  Nb6 {[%clk 0:00:02]} 37. Bxc8 {[%clk 0:00:22]}  Nxc8 {[%clk 0:00:02]} 38. b4 {[%clk 0:00:22]}  Nd6 {[%clk 0:00:03]} 39. Kb3 {[%clk 0:00:23]}  Nb5 {[%clk 0:00:03]} 40. Re1+ {[%clk 0:00:22]}  Kd6 {[%clk 0:00:03]} 41. Rc1 {[%clk 0:00:22]}  Kd5 {[%clk 0:00:01]} 42. Rc5+ {[%clk 0:00:22]}  Kd4 {[%clk 0:00:00]} 43. Rxg5 {[%clk 0:00:23]} 1-0

[Event "December 19 Early 2023"]
[Site "https://www.chess.com"]
[Date "2023.12.19"]
[Round "11"]
[White "Tulchynskyi, Feliks"]
[Black "Yuan, Qingyu"]
[Result "0-1"]
[Board "57"]
[TimeControl "180+1"]
[WhiteFideId "34127895"]
[BlackFideId "8609772"]
[WhiteElo "2131"]
[BlackElo "2359"]
[WhiteTeam "UKR"]
[BlackTeam "CHN"]
[WhiteClock "0:00:07"]
[BlackClock "0:00:03"]

1. c4 {[%clk 0:03:00]}  c5 {[%clk 0:02:59]} 2. Nf3 {[%clk 0:03:00]}  Nf6 {[%clk 0:03:00]} 3. g3 {[%clk 0:03:00]}  d5 {[%clk 0:03:00]} 4. cxd5 {[%clk 0:03:00]}  Nxd5 {[%clk 0:03:01]} 5. Bg2 {[%clk 0:03:00]}  Nc6 {[%clk 0:03:01]} 6. Nc3 {[%clk 0:03:00]}  Nxc3 {[%clk 0:03:02]} 7. bxc3 {[%clk 0:02:58]}  e5 {[%clk 0:03:02]} 8. O-O {[%clk 0:02:58]}  Be7 {[%clk 0:03:02]} 9. d3 {[%clk 0:02:58]}  O-O {[%clk 0:03:03]} 10. Nd2 {[%clk 0:02:56]}  Qc7 {[%clk 0:03:02]} 11. Rb1 {[%clk 0:02:55]}  Rb8 {[%clk 0:03:00]} 12. a4 {[%clk 0:02:52]}  b6 {[%clk 0:02:56]} 13. Nc4 {[%clk 0:02:49]}  Bf6 {[%clk 0:02:40]} 14. Qc2 {[%clk 0:02:41]}  Be6 {[%clk 0:02:39]} 15. f4 {[%clk 0:02:32]}  Rbd8 {[%clk 0:02:23]} 16. f5 {[%clk 0:02:28]}  Bc8 {[%clk 0:01:47]} 17. h4 {[%clk 0:02:14]}  e4 {[%clk 0:01:37]} 18. dxe4 {[%clk 0:01:59]}  Qxg3 {[%clk 0:01:05]} 19. Rf3 {[%clk 0:01:57]}  Qe1+ {[%clk 0:00:59]} 20. Kh2 {[%clk 0:01:25]}  Ne5 {[%clk 0:00:51]} 21. Bg5 {[%clk 0:01:16]}  Nxf3+ {[%clk 0:00:45]} 22. exf3 {[%clk 0:01:13]}  Qxc3 {[%clk 0:00:45]} 23. Qxc3 {[%clk 0:01:12]}  Bxc3 {[%clk 0:00:46]} 24. Bxd8 {[%clk 0:01:13]}  Rxd8 {[%clk 0:00:46]} 25. a5 {[%clk 0:01:01]}  Ba6 {[%clk 0:00:28]} 26. Bf1 {[%clk 0:00:58]}  b5 {[%clk 0:00:28]} 27. Ne3 {[%clk 0:00:56]}  c4 {[%clk 0:00:24]} 28. Nd5 {[%clk 0:00:54]}  Bd4 {[%clk 0:00:19]} 29. Kg2 {[%clk 0:00:50]}  Kf8 {[%clk 0:00:18]} 30. Nc7 {[%clk 0:00:50]}  Bc8 {[%clk 0:00:13]} 31. Nxb5 {[%clk 0:00:48]}  Bc5 {[%clk 0:00:09]} 32. Bxc4 {[%clk 0:00:46]}  Rd2+ {[%clk 0:00:03]} 33. Kh1 {[%clk 0:00:37]}  Ke7 {[%clk 0:00:04]} 34. Nc7 {[%clk 0:00:32]}  Kd6 {[%clk 0:00:03]} 35. Nd5 {[%clk 0:00:29]}  Ke5 {[%clk 0:00:03]} 36. Rb8 {[%clk 0:00:28]}  Bd7 {[%clk 0:00:03]} 37. Rb7 {[%clk 0:00:27]}  Ba4 {[%clk 0:00:03]} 38. Rc7 {[%clk 0:00:23]}  Bd4 {[%clk 0:00:03]} 39. Re7+ {[%clk 0:00:19]}  Kd6 {[%clk 0:00:03]} 40. Rxf7 {[%clk 0:00:19]}  Bd1 {[%clk 0:00:03]} 41. Ne7 {[%clk 0:00:07]}  Bxf3# {[%clk 0:00:03]} 0-1